[Event "Live Chess"]
[Site "Chess.com"]
[Date "2023.05.20"]
[Round "-"]
[White "seuen"]
[Black "jagbama"]
[Result "1-0"]
[WhiteElo "1142"]
[BlackElo "1121"]
[TimeControl "300"]
[EndTime "9:18:43 PDT"]
[Termination "seuen won on time"]

1. e4 {[%clk 0:04:59.6]} 1... e5 {[%clk 0:04:58.4]} 2. Nf3 {[%clk 0:04:57.6]}
2... Nc6 {[%clk 0:04:53.7]} 3. Bc4 {[%clk 0:04:56]} 3... Bc5 {[%clk 0:04:52.8]}
4. b4 {[%clk 0:04:54.8]} 4... Bxb4 {[%clk 0:04:44.1]} 5. c3 {[%clk 0:04:53.8]}
5... Bc5 {[%clk 0:04:40.7]} 6. d4 {[%clk 0:04:53.3]} 6... exd4 {[%clk
0:04:38.8]} 7. O-O {[%clk 0:04:53.1]} 7... dxc3 {[%clk 0:04:30.2]} 8. Bxf7+
{[%clk 0:04:51.7]} 8... Kxf7 {[%clk 0:04:22]} 9. Qd5+ {[%clk 0:04:50.5]} 9...
Ke8 {[%clk 0:04:13.3]} 10. Qh5+ {[%clk 0:04:48.8]} 10... g6 {[%clk 0:04:04.1]}
11. Qxc5 {[%clk 0:04:47.7]} 11... d6 {[%clk 0:03:59.7]} 12. Qxc3 {[%clk
0:04:46.8]} 12... Qf6 {[%clk 0:03:40.2]} 13. e5 {[%clk 0:04:37.6]} 13... dxe5
{[%clk 0:03:30.2]} 14. Bg5 {[%clk 0:04:21.3]} 14... Qd6 {[%clk 0:03:13.1]} 15.
Re1 {[%clk 0:04:11.5]} 15... Nge7 {[%clk 0:03:11.6]} 16. Nxe5 {[%clk 0:04:00.8]}
16... Rf8 {[%clk 0:02:55.1]} 17. Nxc6 {[%clk 0:03:46]} 17... bxc6 {[%clk
0:02:53.4]} 18. Nd2 {[%clk 0:03:36.2]} 18... Be6 {[%clk 0:02:31.2]} 19. Rad1
{[%clk 0:03:22.5]} 19... Rf7 {[%clk 0:02:17.9]} 20. Nf3 {[%clk 0:03:10.4]} 20...
Nd5 {[%clk 0:02:08.2]} 21. Qh8+ {[%clk 0:03:02.9]} 21... Rf8 {[%clk 0:02:01.1]}
22. Qxh7 {[%clk 0:02:35.8]} 22... Rf7 {[%clk 0:01:52.2]} 23. Qg8+ {[%clk
0:02:29.6]} 23... Rf8 {[%clk 0:01:46.2]} 24. Qxg6+ {[%clk 0:02:28.4]} 24... Kd7
{[%clk 0:01:34.7]} 25. Ne5+ {[%clk 0:02:20.8]} 25... Kc8 {[%clk 0:01:25.5]} 26.
Nc4 {[%clk 0:02:13.8]} 26... Qc5 {[%clk 0:01:21.3]} 27. Qxe6+ {[%clk 0:02:01.9]}
27... Kb7 {[%clk 0:01:14.7]} 28. Rb1+ {[%clk 0:01:58.3]} 28... Nb6 {[%clk
0:01:13.8]} 29. Nxb6 {[%clk 0:01:54]} 29... axb6 {[%clk 0:01:12.4]} 30. Be3
{[%clk 0:01:52.3]} 30... Qc2 {[%clk 0:00:52.2]} 31. Qb3 {[%clk 0:01:48.4]} 31...
Rxa2 {[%clk 0:00:33.5]} 32. Qxc2 {[%clk 0:01:47]} 32... Rxc2 {[%clk 0:00:32.2]}
33. h3 {[%clk 0:01:44.5]} 33... c5 {[%clk 0:00:29]} 34. Bf4 {[%clk 0:01:39]}
34... c4 {[%clk 0:00:26.4]} 35. Be3 {[%clk 0:01:31.5]} 35... c3 {[%clk
0:00:25.5]} 36. Rbc1 {[%clk 0:01:30.5]} 36... Ra2 {[%clk 0:00:17.7]} 37. Rxc3
{[%clk 0:01:28.5]} 37... Rb2 {[%clk 0:00:11.3]} 38. Rcc1 {[%clk 0:01:26]} 38...
b5 {[%clk 0:00:10.2]} 39. Rb1 {[%clk 0:01:24.7]} 39... Rc2 {[%clk 0:00:07]} 40.
Rxb5+ {[%clk 0:01:22.7]} 40... Kc6 {[%clk 0:00:05.4]} 41. Rbb1 {[%clk
0:01:19.8]} 41... Rg8 {[%clk 0:00:01.2]} 42. Rbc1 {[%clk 0:01:18.6]} 1-0

[Event "Live Chess"]
[Site "Chess.com"]
[Date "2023.05.20"]
[Round "-"]
[White "ReeceHockton"]
[Black "Inglaterra"]
[Result "0-1"]
[WhiteElo "328"]
[BlackElo "2083"]
[TimeControl "300"]
[EndTime "9:18:51 PDT"]
[Termination "Inglaterra won by checkmate"]

1. d4 {[%clk 0:04:53]} 1... d5 {[%clk 0:04:57.7]} 2. e4 {[%clk 0:04:46.8]} 2...
dxe4 {[%clk 0:04:55.9]} 3. Nc3 {[%clk 0:04:44.3]} 3... Nf6 {[%clk 0:04:54.2]} 4.
f3 {[%clk 0:04:42.2]} 4... Bf5 {[%clk 0:04:50.5]} 5. fxe4 {[%clk 0:04:30.4]}
5... Nxe4 {[%clk 0:04:46.3]} 6. Nxe4 {[%clk 0:04:27.5]} 6... Bxe4 {[%clk
0:04:46.2]} 7. Bd3 {[%clk 0:04:25.9]} 7... Bxg2 {[%clk 0:04:41.5]} 8. Be4 {[%clk
0:04:06.1]} 8... Bxh1 {[%clk 0:04:31.9]} 9. Bxh1 {[%clk 0:04:04.2]} 9... c6
{[%clk 0:04:29.1]} 10. b4 {[%clk 0:03:56.5]} 10... e5 {[%clk 0:04:25.2]} 11. c3
{[%clk 0:03:55.3]} 11... Qh4+ {[%clk 0:04:20.5]} 12. Kd2 {[%clk 0:03:50.1]}
12... Qxh2+ {[%clk 0:04:13.8]} 13. Ne2 {[%clk 0:03:46.8]} 13... exd4 {[%clk
0:04:09.5]} 14. cxd4 {[%clk 0:03:45.2]} 14... Bxb4+ {[%clk 0:04:08]} 15. Kc2
{[%clk 0:03:39.5]} 15... O-O {[%clk 0:03:58.8]} 16. Rb1 {[%clk 0:03:37.7]} 16...
Na6 {[%clk 0:03:56.8]} 17. a3 {[%clk 0:03:35.8]} 17... Bd6 {[%clk 0:03:53.5]}
18. Rxb7 {[%clk 0:03:31.9]} 18... Rab8 {[%clk 0:03:47.3]} 19. Rxa7 {[%clk
0:03:27.5]} 19... Nc7 {[%clk 0:03:31.7]} 20. Ra4 {[%clk 0:03:10]} 20... Nd5
{[%clk 0:03:21.3]} 21. Bxd5 {[%clk 0:03:02.4]} 21... cxd5 {[%clk 0:03:20.4]} 22.
Kc3 {[%clk 0:02:55.5]} 22... Rfc8+ {[%clk 0:03:18.2]} 23. Kd3 {[%clk 0:02:52.9]}
23... Qh3+ {[%clk 0:03:13.4]} 24. Be3 {[%clk 0:02:51.2]} 24... f5 {[%clk
0:02:46.8]} 25. Nf4 {[%clk 0:02:40.2]} 25... Bxf4 {[%clk 0:02:44.8]} 26. Qd2
{[%clk 0:02:32.7]} 26... Rb3+ {[%clk 0:02:41.3]} 27. Ke2 {[%clk 0:02:28.7]}
27... Rxe3+ {[%clk 0:02:40.3]} 28. Kd1 {[%clk 0:02:21.9]} 28... Qf1+ {[%clk
0:02:39.2]} 29. Qe1 {[%clk 0:02:15.7]} 29... Qxe1# {[%clk 0:02:38.6]} 0-1

[Event "Live Chess"]
[Site "Chess.com"]
[Date "2023.05.20"]
[Round "-"]
[White "DianaSpencer1"]
[Black "MizYanKo"]
[Result "0-1"]
[WhiteElo "562"]
[BlackElo "580"]
[TimeControl "300"]
[EndTime "9:18:53 PDT"]
[Termination "MizYanKo won by resignation"]

1. d4 {[%clk 0:04:56.2]} 1... d5 {[%clk 0:04:58.9]} 2. Nf3 {[%clk 0:04:48.6]}
2... e6 {[%clk 0:04:57.9]} 3. Bg5 {[%clk 0:04:36.5]} 3... Ne7 {[%clk 0:04:48.3]}
4. Nc3 {[%clk 0:04:19.8]} 4... Nbc6 {[%clk 0:04:46.1]} 5. e4 {[%clk 0:04:17.1]}
5... dxe4 {[%clk 0:04:42.9]} 6. Nxe4 {[%clk 0:04:09.5]} 6... Qd5 {[%clk
0:04:39.1]} 7. Bd3 {[%clk 0:03:37.1]} 7... Qf5 {[%clk 0:04:22.7]} 8. Qe2 {[%clk
0:03:19.9]} 8... Qg4 {[%clk 0:04:18.3]} 9. h3 {[%clk 0:03:11.9]} 9... Qxg2
{[%clk 0:04:15]} 10. Ng3 {[%clk 0:02:47.6]} 10... e5 {[%clk 0:04:03.1]} 11. Qf1
{[%clk 0:02:16.6]} 11... Bxh3 {[%clk 0:03:55.7]} 12. Qxg2 {[%clk 0:02:06]} 12...
Bxg2 {[%clk 0:03:41.2]} 13. Nf1 {[%clk 0:01:42.7]} 13... Bxh1 {[%clk 0:03:34.6]}
14. Ng3 {[%clk 0:01:12.5]} 14... Bxf3 {[%clk 0:03:30.6]} 15. Bxe7 {[%clk
0:00:59.2]} 15... Bxe7 {[%clk 0:03:26.3]} 16. Nf5 {[%clk 0:00:44.1]} 16... Bg5
{[%clk 0:03:22.8]} 17. Nxg7+ {[%clk 0:00:35.7]} 17... Kf8 {[%clk 0:03:19.3]} 18.
Nh5 {[%clk 0:00:24.8]} 18... Bxh5 {[%clk 0:03:14.8]} 0-1

[Event "Live Chess"]
[Site "Chess.com"]
[Date "2023.05.20"]
[Round "-"]
[White "f4nomore"]
[Black "Fayn02"]
[Result "1-0"]
[WhiteElo "1351"]
[BlackElo "1020"]
[TimeControl "300"]
[EndTime "9:18:53 PDT"]
[Termination "f4nomore won by resignation"]

1. b3 {[%clk 0:04:55.6]} 1... e5 {[%clk 0:04:58.8]} 2. Bb2 {[%clk 0:04:55.2]}
2... Nc6 {[%clk 0:04:54.7]} 3. e3 {[%clk 0:04:55.1]} 3... d6 {[%clk 0:04:54.1]}
4. Nc3 {[%clk 0:04:54.9]} 4... Be6 {[%clk 0:04:53.5]} 5. Nge2 {[%clk 0:04:53.7]}
5... Nf6 {[%clk 0:04:52.9]} 6. h3 {[%clk 0:04:52.5]} 6... Be7 {[%clk 0:04:52.4]}
7. Ng3 {[%clk 0:04:43.9]} 7... Nd5 {[%clk 0:04:51.6]} 8. Nxd5 {[%clk 0:04:41.2]}
8... Bxd5 {[%clk 0:04:51.5]} 9. e4 {[%clk 0:04:39.9]} 9... Be6 {[%clk
0:04:47.3]} 10. Be2 {[%clk 0:04:38.1]} 10... O-O {[%clk 0:04:45.2]} 11. O-O
{[%clk 0:04:36.7]} 11... a5 {[%clk 0:04:42.5]} 12. Bg4 {[%clk 0:04:34.4]} 12...
Bxg4 {[%clk 0:04:40.8]} 13. Qxg4 {[%clk 0:04:32.1]} 13... h6 {[%clk 0:04:34.1]}
14. Nh5 {[%clk 0:04:28.4]} 14... g6 {[%clk 0:04:31.6]} 15. Ng3 {[%clk
0:04:23.1]} 15... h5 {[%clk 0:04:30]} 16. Qe2 {[%clk 0:04:21]} 16... Bh4 {[%clk
0:04:23.7]} 17. Nh1 {[%clk 0:04:10.8]} 17... Qg5 {[%clk 0:04:21.6]} 18. g3
{[%clk 0:04:05.8]} 18... Bxg3 {[%clk 0:04:19.6]} 19. fxg3 {[%clk 0:04:04.2]}
19... h4 {[%clk 0:04:15.8]} 20. g4 {[%clk 0:04:01.1]} 20... f5 {[%clk
0:04:09.2]} 21. exf5 {[%clk 0:03:57.9]} 21... gxf5 {[%clk 0:04:09.1]} 22. Nf2
{[%clk 0:03:41.5]} 22... fxg4 {[%clk 0:03:57.8]} 23. Nxg4 {[%clk 0:03:39.5]}
23... Rxf1+ {[%clk 0:03:54.9]} 24. Rxf1 {[%clk 0:03:36.8]} 24... Ne7 {[%clk
0:03:51.6]} 25. d3 {[%clk 0:03:31.8]} 25... Nf5 {[%clk 0:03:50.2]} 26. Qf3
{[%clk 0:03:22.8]} 26... Ng3 {[%clk 0:03:39.4]} 27. Qf7+ {[%clk 0:03:04.5]}
27... Kh8 {[%clk 0:03:34.7]} 28. Qf6+ {[%clk 0:03:01.4]} 28... Qxf6 {[%clk
0:03:32.7]} 29. Rxf6 {[%clk 0:02:59]} 29... Ne2+ {[%clk 0:03:27.1]} 30. Kg2
{[%clk 0:02:56.3]} 30... Nf4+ {[%clk 0:03:23.9]} 31. Kh2 {[%clk 0:02:54.3]}
31... Rg8 {[%clk 0:03:13.7]} 32. Rf7 {[%clk 0:02:51.5]} 32... Rc8 {[%clk
0:03:11.9]} 33. Bc1 {[%clk 0:02:42.7]} 33... b5 {[%clk 0:03:10.9]} 34. Bxf4
{[%clk 0:02:40.9]} 34... exf4 {[%clk 0:03:10.8]} 35. Rxf4 {[%clk 0:02:39]} 35...
c5 {[%clk 0:03:08.7]} 36. Rf5 {[%clk 0:02:30.9]} 36... Kg7 {[%clk 0:03:03.7]}
37. Rh5 {[%clk 0:02:22.8]} 37... Kf7 {[%clk 0:03:02.6]} 38. Rxh4 {[%clk
0:02:21]} 38... Ke6 {[%clk 0:03:02.1]} 39. Rh6+ {[%clk 0:02:14.3]} 39... Kd5
{[%clk 0:03:01]} 40. c4+ {[%clk 0:02:04.1]} 40... bxc4 {[%clk 0:02:58.8]} 41.
dxc4+ {[%clk 0:02:02.5]} 41... Kd4 {[%clk 0:02:58.3]} 42. Rxd6+ {[%clk
0:02:00.2]} 42... Kc3 {[%clk 0:02:57.9]} 43. Ra6 {[%clk 0:01:54]} 43... Re8
{[%clk 0:02:53.3]} 44. Rxa5 {[%clk 0:01:52]} 44... Re2+ {[%clk 0:02:52.4]} 45.
Kg3 {[%clk 0:01:50.6]} 45... Rd2 {[%clk 0:02:48.3]} 1-0

[Event "Live Chess"]
[Site "Chess.com"]
[Date "2023.05.20"]
[Round "-"]
[White "Demyan7777"]
[Black "Bob2pen"]
[Result "0-1"]
[WhiteElo "1625"]
[BlackElo "1706"]
[TimeControl "300"]
[EndTime "9:18:54 PDT"]
[Termination "Bob2pen won by resignation"]

1. e4 {[%clk 0:04:53.4]} 1... e6 {[%clk 0:04:58.3]} 2. d4 {[%clk 0:04:51.4]}
2... d5 {[%clk 0:04:57.2]} 3. Nd2 {[%clk 0:04:50.3]} 3... Nf6 {[%clk 0:04:55.6]}
4. e5 {[%clk 0:04:49.2]} 4... Nfd7 {[%clk 0:04:54.6]} 5. Bd3 {[%clk 0:04:46.6]}
5... c5 {[%clk 0:04:53.2]} 6. c3 {[%clk 0:04:45.5]} 6... Nc6 {[%clk 0:04:52.3]}
7. Ne2 {[%clk 0:04:44]} 7... cxd4 {[%clk 0:04:51]} 8. cxd4 {[%clk 0:04:43]} 8...
f6 {[%clk 0:04:50.1]} 9. f4 {[%clk 0:04:40.6]} 9... fxe5 {[%clk 0:04:47.1]} 10.
fxe5 {[%clk 0:04:36.2]} 10... Nxd4 {[%clk 0:04:45.7]} 11. Nxd4 {[%clk
0:04:34.2]} 11... Qh4+ {[%clk 0:04:44.1]} 12. g3 {[%clk 0:04:27.2]} 12... Qxd4
{[%clk 0:04:42.2]} 13. Nf3 {[%clk 0:04:13.2]} 13... Bb4+ {[%clk 0:04:35.8]} 14.
Bd2 {[%clk 0:04:03.7]} 14... Qe3+ {[%clk 0:04:33.7]} 15. Kf1 {[%clk 0:04:01.9]}
15... Qxd3+ {[%clk 0:04:26]} 16. Kg2 {[%clk 0:04:00.3]} 16... Bxd2 {[%clk
0:04:22.3]} 17. Nxd2 {[%clk 0:03:59]} 17... O-O {[%clk 0:04:15.7]} 18. Nf3
{[%clk 0:03:55.8]} 18... Qxd1 {[%clk 0:04:14.2]} 19. Rhxd1 {[%clk 0:03:54.4]}
19... Nb6 {[%clk 0:04:11.9]} 20. Rac1 {[%clk 0:03:52.6]} 20... Bd7 {[%clk
0:04:08.9]} 21. b3 {[%clk 0:03:49.6]} 21... Rac8 {[%clk 0:04:07.2]} 22. Nd4
{[%clk 0:03:46.2]} 22... Rxc1 {[%clk 0:04:04.2]} 23. Rxc1 {[%clk 0:03:45]} 23...
Rc8 {[%clk 0:04:03]} 24. Rxc8+ {[%clk 0:03:43.1]} 24... Nxc8 {[%clk 0:04:00.8]}
25. Kf3 {[%clk 0:03:40.7]} 25... Ne7 {[%clk 0:03:59.6]} 26. Ne2 {[%clk
0:03:35.2]} 26... Kf7 {[%clk 0:03:57.7]} 27. Ke3 {[%clk 0:03:33.3]} 27... Nc6
{[%clk 0:03:56.3]} 28. Kf4 {[%clk 0:03:31.9]} 28... h6 {[%clk 0:03:54.6]} 29. h4
{[%clk 0:03:30.5]} 29... Nb4 {[%clk 0:03:50.6]} 30. a3 {[%clk 0:03:28]} 30...
Nd3+ {[%clk 0:03:49.3]} 31. Ke3 {[%clk 0:03:26.9]} 31... Nxe5 {[%clk 0:03:48]}
32. Nd4 {[%clk 0:03:25.5]} 32... Nc6 {[%clk 0:03:44.8]} 33. Nb5 {[%clk
0:03:24.2]} 33... a6 {[%clk 0:03:40.4]} 34. Nc3 {[%clk 0:03:21.9]} 34... d4+
{[%clk 0:03:37.8]} 0-1

[Event "Live Chess"]
[Site "Chess.com"]
[Date "2023.05.20"]
[Round "-"]
[White "defenderalist"]
[Black "AlanPaling"]
[Result "1-0"]
[WhiteElo "1595"]
[BlackElo "1188"]
[TimeControl "300"]
[EndTime "9:18:58 PDT"]
[Termination "defenderalist won by resignation"]

1. e4 {[%clk 0:04:59.6]} 1... Nf6 {[%clk 0:04:57.8]} 2. Nc3 {[%clk 0:04:49.2]}
2... d5 {[%clk 0:04:56.6]} 3. exd5 {[%clk 0:04:48.1]} 3... Nxd5 {[%clk
0:04:55.4]} 4. Nxd5 {[%clk 0:04:47.6]} 4... Qxd5 {[%clk 0:04:53.5]} 5. Ne2
{[%clk 0:04:46.3]} 5... Bf5 {[%clk 0:04:49]} 6. Nc3 {[%clk 0:04:45.2]} 6... Qc5
{[%clk 0:04:37.1]} 7. Bb5+ {[%clk 0:04:39.9]} 7... c6 {[%clk 0:04:35.5]} 8. Be2
{[%clk 0:04:39]} 8... Nd7 {[%clk 0:04:33.8]} 9. O-O {[%clk 0:04:37.6]} 9... e6
{[%clk 0:04:32.5]} 10. d3 {[%clk 0:04:37]} 10... Be7 {[%clk 0:04:31.2]} 11. Be3
{[%clk 0:04:31.8]} 11... Qa5 {[%clk 0:04:28.8]} 12. a3 {[%clk 0:04:29.9]} 12...
O-O {[%clk 0:04:22.7]} 13. b4 {[%clk 0:04:28.7]} 13... Qc7 {[%clk 0:04:20.2]}
14. Qd2 {[%clk 0:04:26]} 14... Bf6 {[%clk 0:04:15]} 15. Rab1 {[%clk 0:04:22.2]}
15... a6 {[%clk 0:04:11.6]} 16. Ne4 {[%clk 0:04:18.9]} 16... Nb6 {[%clk
0:03:57.7]} 17. Nxf6+ {[%clk 0:04:17.6]} 17... gxf6 {[%clk 0:03:55.1]} 18. Bh6
{[%clk 0:04:09.1]} 18... Rfd8 {[%clk 0:03:49.8]} 19. Qe3 {[%clk 0:04:07.3]}
19... Nd5 {[%clk 0:03:42]} 20. Qg3+ {[%clk 0:03:57.3]} 20... Qxg3 {[%clk
0:03:39.7]} 21. fxg3 {[%clk 0:03:57.2]} 21... Nc3 {[%clk 0:03:33.3]} 22. Rbe1
{[%clk 0:03:50.8]} 22... Nxe2+ {[%clk 0:03:27.1]} 23. Rxe2 {[%clk 0:03:49.8]}
23... Kh8 {[%clk 0:03:18.1]} 24. h3 {[%clk 0:03:48.3]} 24... Rg8 {[%clk
0:03:14.4]} 25. g4 {[%clk 0:03:47.6]} 25... Bg6 {[%clk 0:03:10.7]} 26. Rxf6
{[%clk 0:03:45.9]} 26... Rad8 {[%clk 0:03:06.1]} 27. Ref2 {[%clk 0:03:40.8]}
27... Rd7 {[%clk 0:03:03.8]} 28. h4 {[%clk 0:03:36.4]} 28... Rgd8 {[%clk
0:02:51.2]} 29. h5 {[%clk 0:03:35.2]} 29... Bxd3 {[%clk 0:02:48.3]} 30. cxd3
{[%clk 0:03:32.6]} 30... Kg8 {[%clk 0:02:40.1]} 31. R6f3 {[%clk 0:03:27.9]}
31... b6 {[%clk 0:02:32.1]} 32. Bg5 {[%clk 0:03:16.8]} 32... Re8 {[%clk
0:02:25.8]} 33. h6 {[%clk 0:03:14.4]} 33... e5 {[%clk 0:02:19.3]} 34. Rf6 {[%clk
0:03:03.8]} 34... e4 {[%clk 0:02:10.9]} 35. dxe4 {[%clk 0:03:01.3]} 35... Rxe4
{[%clk 0:02:07.8]} 36. Rxc6 {[%clk 0:02:59]} 36... Re8 {[%clk 0:02:00.5]} 37.
Rxb6 {[%clk 0:02:55.1]} 37... Rd5 {[%clk 0:01:46.2]} 38. Bf6 {[%clk 0:02:44.4]}
38... Rd1+ {[%clk 0:01:39.9]} 39. Kh2 {[%clk 0:02:43.1]} 39... Rd5 {[%clk
0:01:33]} 40. g5 {[%clk 0:02:41.7]} 40... Rd7 {[%clk 0:01:24.7]} 41. Rxa6 {[%clk
0:02:39.5]} 41... Rc7 {[%clk 0:01:21.4]} 42. Rd2 {[%clk 0:02:34.6]} 42... Rcc8
{[%clk 0:01:17.7]} 43. Rad6 {[%clk 0:02:32.8]} 43... Re6 {[%clk 0:01:12.2]} 44.
Rd8+ {[%clk 0:02:29.7]} 44... Re8 {[%clk 0:01:10.5]} 45. Rxc8 {[%clk 0:02:25.6]}
45... Rxc8 {[%clk 0:01:08.6]} 46. Rd8+ {[%clk 0:02:24.8]} 46... Rxd8 {[%clk
0:01:07.7]} 47. Bxd8 {[%clk 0:02:24.2]} 1-0

[Event "Live Chess"]
[Site "Chess.com"]
[Date "2023.05.20"]
[Round "-"]
[White "peter-785"]
[Black "flyingpuffins"]
[Result "0-1"]
[WhiteElo "1151"]
[BlackElo "1983"]
[TimeControl "300"]
[EndTime "9:19:00 PDT"]
[Termination "flyingpuffins won by resignation"]

1. e4 {[%clk 0:04:54.9]} 1... d5 {[%clk 0:04:56.4]} 2. exd5 {[%clk 0:04:48.5]}
2... Qxd5 {[%clk 0:04:56.3]} 3. d4 {[%clk 0:04:47]} 3... e5 {[%clk 0:04:53.5]}
4. Nf3 {[%clk 0:04:39.3]} 4... Bg4 {[%clk 0:04:47.8]} 5. Be2 {[%clk 0:04:36.2]}
5... Nc6 {[%clk 0:04:43.5]} 6. h3 {[%clk 0:04:29.9]} 6... Bxf3 {[%clk
0:04:38.3]} 7. Bxf3 {[%clk 0:04:28.8]} 7... Qxd4 {[%clk 0:04:37.6]} 8. Qxd4
{[%clk 0:04:26.1]} 8... Nxd4 {[%clk 0:04:34.3]} 9. Na3 {[%clk 0:04:17.9]} 9...
Nxf3+ {[%clk 0:04:32.7]} 10. gxf3 {[%clk 0:04:17.7]} 10... O-O-O {[%clk
0:04:31.4]} 11. Bd2 {[%clk 0:04:11.1]} 11... f6 {[%clk 0:04:28]} 12. Nc4 {[%clk
0:04:07.1]} 12... Ne7 {[%clk 0:04:25.7]} 13. O-O-O {[%clk 0:04:05.7]} 13... Nc6
{[%clk 0:04:24.6]} 14. Bc3 {[%clk 0:03:58.6]} 14... Bc5 {[%clk 0:04:22.5]} 15.
Rhf1 {[%clk 0:03:50.3]} 15... Nd4 {[%clk 0:04:19.9]} 16. Bxd4 {[%clk 0:03:41.9]}
16... Bxd4 {[%clk 0:04:19.8]} 17. c3 {[%clk 0:03:38.8]} 17... Bb6 {[%clk
0:04:17.8]} 18. Nxb6+ {[%clk 0:03:37.1]} 18... axb6 {[%clk 0:04:17.6]} 19. Rxd8+
{[%clk 0:03:34.8]} 19... Rxd8 {[%clk 0:04:16.1]} 20. Rd1 {[%clk 0:03:34.2]}
20... Rxd1+ {[%clk 0:04:14.9]} 21. Kxd1 {[%clk 0:03:33.1]} 21... Kd7 {[%clk
0:04:14.8]} 22. Kd2 {[%clk 0:03:32.2]} 22... Ke6 {[%clk 0:04:14.2]} 23. Ke3
{[%clk 0:03:31.3]} 23... Kf5 {[%clk 0:04:12.2]} 24. b4 {[%clk 0:03:17.6]} 24...
b5 {[%clk 0:04:07.2]} 25. a3 {[%clk 0:03:13.5]} 25... Kg5 {[%clk 0:04:05.7]} 26.
Kd3 {[%clk 0:03:05.1]} 26... Kf4 {[%clk 0:04:03.3]} 27. c4 {[%clk 0:03:04.5]}
27... bxc4+ {[%clk 0:04:00.6]} 28. Kxc4 {[%clk 0:03:03.6]} 28... Kxf3 {[%clk
0:04:00.5]} 29. Kc5 {[%clk 0:02:53.8]} 29... Kxf2 {[%clk 0:03:59.8]} 30. b5
{[%clk 0:02:52.5]} 30... e4 {[%clk 0:03:58.9]} 31. b6 {[%clk 0:02:51.1]} 31...
c6 {[%clk 0:03:55.1]} 32. a4 {[%clk 0:02:48.7]} 32... e3 {[%clk 0:03:54.3]} 33.
a5 {[%clk 0:02:47.7]} 33... e2 {[%clk 0:03:53.8]} 34. a6 {[%clk 0:02:46.9]}
34... bxa6 {[%clk 0:03:52]} 35. b7 {[%clk 0:02:45.5]} 35... e1=Q {[%clk
0:03:51.2]} 36. b8=Q {[%clk 0:02:43.8]} 36... Qe5+ {[%clk 0:03:47.5]} 37. Qxe5
{[%clk 0:02:41.5]} 37... fxe5 {[%clk 0:03:46.9]} 38. Kxc6 {[%clk 0:02:40.9]}
38... e4 {[%clk 0:03:46.2]} 0-1

[Event "Live Chess"]
[Site "Chess.com"]
[Date "2023.05.20"]
[Round "-"]
[White "Trendle"]
[Black "noobsmoker24"]
[Result "1-0"]
[WhiteElo "2680"]
[BlackElo "1368"]
[TimeControl "300"]
[EndTime "9:19:08 PDT"]
[Termination "Trendle won by checkmate"]

1. e4 {[%clk 0:04:57]} 1... Nf6 {[%clk 0:04:58.7]} 2. e5 {[%clk 0:04:54.7]} 2...
Nd5 {[%clk 0:04:58.1]} 3. d4 {[%clk 0:04:54.2]} 3... d6 {[%clk 0:04:56.8]} 4. c4
{[%clk 0:04:53.7]} 4... Nb6 {[%clk 0:04:55.9]} 5. exd6 {[%clk 0:04:53.1]} 5...
cxd6 {[%clk 0:04:55.2]} 6. Nc3 {[%clk 0:04:52.4]} 6... g6 {[%clk 0:04:52.7]} 7.
Be3 {[%clk 0:04:51.4]} 7... Bg7 {[%clk 0:04:51.6]} 8. Rc1 {[%clk 0:04:50.8]}
8... O-O {[%clk 0:04:49.3]} 9. b3 {[%clk 0:04:50.5]} 9... Nc6 {[%clk 0:04:48.6]}
10. d5 {[%clk 0:04:49.6]} 10... Ne5 {[%clk 0:04:33.2]} 11. Be2 {[%clk
0:04:48.7]} 11... e6 {[%clk 0:03:59.8]} 12. f4 {[%clk 0:04:47.2]} 12... Re8
{[%clk 0:03:27.4]} 13. fxe5 {[%clk 0:04:43.7]} 13... exd5 {[%clk 0:03:24.7]} 14.
Nxd5 {[%clk 0:04:36.6]} 14... Nxd5 {[%clk 0:03:08.7]} 15. cxd5 {[%clk
0:04:36.5]} 15... Bxe5 {[%clk 0:03:03.9]} 16. Nf3 {[%clk 0:04:33.9]} 16... Bb2
{[%clk 0:03:00.5]} 17. Bd4 {[%clk 0:04:28.3]} 17... Bxc1 {[%clk 0:02:48.8]} 18.
Qxc1 {[%clk 0:04:28.2]} 18... Qe7 {[%clk 0:02:29.4]} 19. O-O {[%clk 0:04:27.5]}
19... Bf5 {[%clk 0:01:52.4]} 20. Bb5 {[%clk 0:04:18.6]} 20... Rec8 {[%clk
0:01:39.9]} 21. Qf4 {[%clk 0:04:08.5]} 21... a6 {[%clk 0:01:33.8]} 22. Re1
{[%clk 0:03:57]} 22... Qf8 {[%clk 0:01:11.2]} 23. Nh4 {[%clk 0:03:41]} 23...
axb5 {[%clk 0:00:58.9]} 24. Nxf5 {[%clk 0:03:39.6]} 24... gxf5 {[%clk
0:00:47.4]} 25. Qg5+ {[%clk 0:03:38.1]} 25... Qg7 {[%clk 0:00:44.2]} 26. Qxg7#
{[%clk 0:03:37.8]} 1-0

[Event "Live Chess"]
[Site "Chess.com"]
[Date "2023.05.20"]
[Round "-"]
[White "stevefairhurst"]
[Black "white59867"]
[Result "1-0"]
[WhiteElo "525"]
[BlackElo "100"]
[TimeControl "300"]
[EndTime "9:19:11 PDT"]
[Termination "stevefairhurst won by checkmate"]

1. e4 {[%clk 0:04:58.6]} 1... e5 {[%clk 0:04:53.9]} 2. Nf3 {[%clk 0:04:58.5]}
2... d6 {[%clk 0:04:51.1]} 3. Bc4 {[%clk 0:04:57.1]} 3... d5 {[%clk 0:04:41]} 4.
exd5 {[%clk 0:04:55.6]} 4... Bd6 {[%clk 0:04:34]} 5. d3 {[%clk 0:04:52.6]} 5...
Nf6 {[%clk 0:04:29.7]} 6. Ng5 {[%clk 0:04:51.5]} 6... O-O {[%clk 0:04:26.3]} 7.
Qf3 {[%clk 0:04:48.2]} 7... Bg4 {[%clk 0:04:14.6]} 8. Qg3 {[%clk 0:04:45.8]}
8... Nbd7 {[%clk 0:04:01.1]} 9. Qxg4 {[%clk 0:04:43.5]} 9... Nxg4 {[%clk
0:03:58.6]} 10. h3 {[%clk 0:04:37.7]} 10... Ngf6 {[%clk 0:03:51]} 11. O-O {[%clk
0:04:35.8]} 11... Nxd5 {[%clk 0:03:47.4]} 12. Bxd5 {[%clk 0:04:34.2]} 12... c6
{[%clk 0:03:42.6]} 13. Bc4 {[%clk 0:04:32.3]} 13... Be7 {[%clk 0:03:28.4]} 14.
f4 {[%clk 0:04:30.1]} 14... Bxg5 {[%clk 0:03:17.6]} 15. fxg5 {[%clk 0:04:28.8]}
15... h6 {[%clk 0:03:11]} 16. g6 {[%clk 0:04:24.2]} 16... Nb6 {[%clk 0:02:52.7]}
17. Bb3 {[%clk 0:04:17.1]} 17... Nd5 {[%clk 0:02:46.1]} 18. Bxd5 {[%clk
0:04:12.1]} 18... cxd5 {[%clk 0:02:44.6]} 19. Nc3 {[%clk 0:04:10]} 19... Qb6+
{[%clk 0:02:36.7]} 20. Kh1 {[%clk 0:04:06.4]} 20... Qxg6 {[%clk 0:02:28.6]} 21.
Nxd5 {[%clk 0:04:02.3]} 21... Rae8 {[%clk 0:02:21]} 22. d4 {[%clk 0:03:53.5]}
22... Re6 {[%clk 0:02:18]} 23. Nc7 {[%clk 0:03:46]} 23... Rf6 {[%clk 0:02:15.2]}
24. dxe5 {[%clk 0:03:44.7]} 24... Rf2 {[%clk 0:02:13.2]} 25. Rxf2 {[%clk
0:03:40.4]} 25... f6 {[%clk 0:02:10.2]} 26. e6 {[%clk 0:03:33.4]} 26... Rd8
{[%clk 0:01:59.6]} 27. Bd2 {[%clk 0:03:24]} 27... Rf8 {[%clk 0:01:54.3]} 28. e7
{[%clk 0:03:22.8]} 28... Re8 {[%clk 0:01:47.3]} 29. Nxe8 {[%clk 0:03:21.2]}
29... Qxe8 {[%clk 0:01:45.2]} 30. Re2 {[%clk 0:03:18.7]} 30... g6 {[%clk
0:01:36.3]} 31. Bxh6 {[%clk 0:03:15.6]} 31... g5 {[%clk 0:01:35.8]} 32. Rf1
{[%clk 0:03:12.5]} 32... Qh5 {[%clk 0:01:28.1]} 33. Re6 {[%clk 0:03:06.3]} 33...
Qe8 {[%clk 0:01:23.4]} 34. Rfxf6 {[%clk 0:03:02.6]} 34... Qf7 {[%clk 0:01:08.7]}
35. Rxf7 {[%clk 0:02:54.7]} 35... Kxf7 {[%clk 0:01:07.3]} 36. e8=Q# {[%clk
0:02:53.1]} 1-0